Cogmind - Beta 13 @@@ ROGUE MODE // 2024.06.01 @ 18:37:21 Player: delto Result: Self-destructed Performance ------------- Evolutions (1) 500 Regions Visited (2) 400 Robots Destroyed (7) 35 Value Destroyed (103) 103 Prototype IDs (0) 0 Alien Tech Used (0) 0 Bonus (0) 0 TOTAL SCORE: 1038 Bonus ------- None Cogmind --------- Core Integrity 327/400 Matter 163/300 Energy 400/400 System Corruption 0% Temperature Cool (12) Movement Treading (160) Location -9/Materials Parts ------- > --- POWER (1) -------- Ion Engine > --- PROPULSION (4) --- Light Treads Light Treads Hover Unit > --- UTILITY (2) ------ Medium Battery > --- WEAPON (2) ------- Assault Rifle > --- INVENTORY (5) ---- Light Ion Engine Wheel Small Laser Peak State ------------ > --- POWER ------------ Ion Engine > --- PROPULSION ------- Light Treads Light Treads Wheel Wheel > --- UTILITY ---------- Medium Battery Improved Terrain Scanner > --- WEAPON ----------- Small Laser Assault Rifle > --- INVENTORY -------- Light Ion Engine Grenade Launcher [Rating: 11] Favorites ----------- Power Ion Engine Engine Ion Engine Propulsion Light Treads Treads Light Treads Wheel Wheel Hover Unit Hover Unit Utility Improved Terrain Scanner Device Improved Terrain Scanner Storage Small Storage Unit Processor Signal Interpreter Weapon Assault Rifle Energy Gun Small Laser Ballistic Gun Assault Rifle Launcher Grenade Launcher Build | -11 -10 -9 ------- Run | Yrd Mat Mat Slots Evolved 2 | . . 2 Power . | . . . Propulsion 2 | . . 2 Utility . | . . . Weapon . | . . . Parts Attached 15 | 7 2 6 Power 1 | 1 . . Engine 1 | 1 . . Core . | . . . Reactor . | . . . Propulsion 7 | 2 . 5 Treads 3 | 1 . 2 Leg . | . . . Wheel 2 | 1 . 1 Hover 2 | . . 2 Flight . | . . . Utility 4 | 2 2 . Device 1 | 1 . . Storage 2 | 1 1 . Processor 1 | . 1 . Hackware . | . . . Protection . | . . . Artifact . | . . . Weapon 3 | 2 . 1 Energy Gun 1 | 1 . . Energy Cannon . | . . . Ballistic Gun 1 | 1 . . Ballistic Cannon . | . . . Launcher 1 | . . 1 Special Weapon . | . . . Impact Weapon . | . . . Slashing Weapon . | . . . Piercing Weapon . | . . . Special Melee Weapon . | . . . Unidentified Prototypes . | . . . Parts Lost 4 | . . 4 Power . | . . . Propulsion 2 | . . 2 Utility 1 | . . 1 Weapon 1 | . . 1 Highest Loss Streak 4 | . . 4 To Critical Strikes . | . . . Average Slot Usage (%) 99 | . 100 95 Engine 13 | . 14 11 Treads 14 | . 14 19 Wheel 14 | . 14 15 Device 13 | . 14 11 Storage 11 | . 11 11 Processor 1 | . 2 . Energy Gun 12 | . 14 2 Ballistic Gun 13 | . 14 11 Launcher 1 | . . 8 Naked Turns . | . . . Heaviest Build 14 | 14 14 13 Greatest Support 40 | 20 10 40 Greatest Overweight (x) 1 | 1 1 1 Average Overweight (x) . | . . . Largest Inventory Capacity 8 | 8 8 5 Average Capacity 7 | 7 7 5 Most Carried 8 | 8 8 4 Average Carried 5 | 4 6 2 Final Capacity 8 | 8 5 5 Final Carried 8 | 8 4 3 Class Distribution -------------------- 100% | Mutant Dominant Class ---------------- Mutant | -10/Materials Mutant | -9/Materials Resources | -11 -10 -9 ----------- Run | Yrd Mat Mat Matter Collected 282 | 236 . 46 Remotely . | . . . Salvage Created 133 | 51 . 82 Parts 17 | 7 . 10 Haulers Intercepted . | . . . Recyclers Shooed 1 | . 1 . Parts Field Recycled . | . . . Retrieved Matter . | . . . Parts Self-Destructed . | . . . Prevented . | . . . Kills | -11 -10 -9 ------- Run | Yrd Mat Mat Combat Hostiles Destroyed 1 | . . 1 AOE 1 | . . 1 Classes Destroyed 4 | 1 . 3 Builder 1 | . . 1 Tunneler 3 | 3 . . Watcher 2 | . . 2 Sentry 1 | . . 1 Best Kill Streak 4 | 2 . 4 Combat Bots Only 1 | . . 1 Max Kills in Single Turn 2 | 1 . 2 Gunslinging . | . . . Exploded 1 | . . 1 Melee . | . . . Uniques/NPCs Destroyed . | . . . Combat | -11 -10 -9 -------- Run | Yrd Mat Mat Hostile Shots Fired 40 | . . 40 Missed 9 | . . 9 Damage Taken 486 | . . 486 Core 73 | . . 73 Absorbed by Shields . | . . . Core Remaining (%) 100 | 100 100 . Volleys Fired 13 | 4 4 5 Largest 2 | 2 2 2 Hottest 60 | 60 60 50 Shots Fired 26 | 8 8 10 Gun 21 | 8 8 5 Cannon . | . . . Launcher 5 | . . 5 Special . | . . . Kinetic 13 | 4 4 5 Thermal 8 | 4 4 . Explosive 5 | . . 5 Electromagnetic . | . . . Robot Hit Streak 9 | 2 1 9 Robot Miss Streak 2 | 1 2 . Penetration Max . | . . . Secondary Targets . | . . . Shots Hit Robots 15 | 5 1 9 Core Hits 9 | 3 . 6 Critical Kills . | . . . Critical Parts Destroyed . | . . . Critical Strikes . | . . . Melee Attacks . | . . . Impact . | . . . Slashing . | . . . Piercing . | . . . Sneak Attacks . | . . . Combat Hostiles . | . . . Follow-up Attacks . | . . . Damage Inflicted 388 | 56 10 322 Guns 116 | 56 10 50 Cannons . | . . . Explosions 272 | . . 272 Melee . | . . . Ramming . | . . . Kinetic 83 | 33 . 50 Thermal 33 | 23 10 . Explosive 272 | . . 272 Electromagnetic . | . . . Impact . | . . . Slashing . | . . . Piercing . | . . . Highest Corruption . | . . . Average Corruption . | . . . Corruption Purged . | . . . Corruption Blocked . | . . . Overload Shots . | . . . Overflow Damage 41 | . . 41 Projectiles . | . . . Explosions 41 | . . 41 Melee . | . . . Knockbacks . | . . . Impact . | . . . Kinetic . | . . . Secondary . | . . . Self-Inflicted Damage 42 | . . 42 Shots 2 | . . 2 Rammed . | . . . Targets Rammed . | . . . Kicked . | . . . Crushed . | . . . Highest Temperature 29 | . . 29 Average Temperature 11 | . . 11 Received Heat Transfer 180 | . . 180 Siege Activations . | . . . Robots Corrupted . | . . . Combat Hostiles . | . . . Parts Fried . | . . . Impact Corruptions . | . . . Robots Melted . | . . . Combat Hostiles . | . . . Parts Melted . | . . . Heat Transferred 75 | 50 25 . Parts Sabotaged . | . . . Parts Stolen . | . . . Parts Stripped . | . . . Power Chain Reactions . | . . . Alert | -11 -10 -9 ------- Run | Yrd Mat Mat Peak Influence 86 | 15 18 86 Initial 9 | . 9 7 Average 17 | 3 13 59 Maximum Alert Level . | . . . Low Security (%) 100 | 100 100 100 Level 1 . | . . . Level 2 . | . . . Level 3 . | . . . Level 4 . | . . . Level 5 . | . . . High Security . | . . . Max Security . | . . . Squads Dispatched 1 | . 1 . Investigation 1 | . 1 . Extermination . | . . . Reinforcement . | . . . Assault . | . . . Garrison . | . . . Intercept . | . . . Searches Triggered . | . . . Construction Impeded . | . . . Haulers Reinforced . | . . . Active Scanning Responses . | . . . Cargo Convoy Interrupts . | . . . Stealth | -11 -10 -9 --------- Run | Yrd Mat Mat Distress Signals . | . . . Communications Jammed . | . . . Distress Signals . | . . . Times Spotted 6 | . 1 5 Peak Tracking Total 5 | . 1 5 Tactical Retreats . | . . . Traps | -11 -10 -9 ------- Run | Yrd Mat Mat Traps Triggered 1 | . 1 . Indirectly . | . . . Trap Hack Attempts . | . . . Triggered . | . . . Disarmed . | . . . Reprogrammed . | . . . Reused . | . . . Traps Extracted . | . . . Installed . | . . . Triggered . | . . . Machines | -11 -10 -9 ---------- Run | Yrd Mat Mat Machines Disabled . | . . . Max in Single Turn . | . . . Machines Repaired . | . . . Machines Dismantled . | . . . Machines Sabotaged . | . . . Overloaded Fab Kills . | . . . Hacking | -11 -10 -9 --------- Run | Yrd Mat Mat Machines Accessed 4 | . 4 . Terminals 3 | . 3 . Fabricators . | . . . Repair Stations . | . . . Recycling Units 1 | . 1 . Scanalyzers . | . . . Garrison Access . | . . . Total Hacks 4 | . 4 . Successful 3 | . 3 . Failed 1 | . 1 . Catastrophic . | . . . Database Lockouts . | . . . Manual 3 | . 3 . Terminals 3 | . 3 . Fabricators . | . . . Repair Stations . | . . . Recycling Units 1 | . 1 . Scanalyzers . | . . . Garrison Access . | . . . Terminal Hacks . | . . . Fabricator Hacks . | . . . Repair Station Hacks . | . . . Recycling Unit Hacks 1 | . 1 . Report Inventory 1 | . 1 . Scanalyzer . | . . . Garrison Access Hacks . | . . . Unauthorized Hacks 2 | . 2 . Terminals 2 | . 2 . Botnet 2 | . 2 . Fabricators . | . . . Repair Stations . | . . . Recycling Units . | . . . Scanalyzers . | . . . Garrison Access . | . . . Data Cores Recovered . | . . . Used . | . . . Hacking Detections 1 | . 1 . Full Trace Events . | . . . Feedback Events . | . . . Feedback Blocked . | . . . Robot Schematics Acquired . | . . . Robots Built . | . . . Authchips . | . . . Time . | . . . Total Robot Build Rating . | . . . Part Schematics Acquired . | . . . Parts Built . | . . . Authchips . | . . . Time . | . . . Total Part Build Rating . | . . . Parts Repaired . | . . . Time . | . . . Parts Recycled . | . . . Recycled Matter . | . . . Retrieved Matter . | . . . Retrieved Components . | . . . Parts Scanalyzed . | . . . Part Schematics Acquired . | . . . Parts Damaged . | . . . Bothacking | -11 -10 -9 ------------ Run | Yrd Mat Mat Used RIF Installer . | . . . Robots Hacked . | . . . Non-combat . | . . . Combat . | . . . Robot Hacks Applied . | . . . Relay Couplers Released . | . . . Fabnet Peak Effective % . | . . . Robots Rewired . | . . . Allies Hacked . | . . . Hacks Repelled . | . . . Allies | -11 -10 -9 -------- Run | Yrd Mat Mat Total Allies . | . . . Largest Group . | . . . Highest-Rated Group . | . . . Highest-Rated Ally . | . . . Total Orders . | . . . Ally Attacks . | . . . Total Damage . | . . . Kills . | . . . Allies Corrupted . | . . . Allies Melted . | . . . Intel | -11 -10 -9 ------- Run | Yrd Mat Mat Robot Analysis Total . | . . . Derelict Logs Recovered . | . . . Drone Launches . | . . . Drone Recoveries . | . . . Exploration | -11 -10 -9 ------------- Run | Yrd Mat Mat Turns Passed 425 | 118 252 55 Spaces Moved 375 | 92 249 34 Core 6 | 6 . . Treads 4 | 1 . 3 Legs . | . . . Wheels 365 | 85 249 31 Hover . | . . . Flight . | . . . Fastest Speed 50 | 50 80 80 Average Speed 92 | 93 92 87 Slowest Speed 160 | 160 95 160 Overloaded Moves . | . . . Propulsion Burnouts . | . . . Robots Hopped . | . . . Cave-ins Triggered . | . . . Exploration Rate (%) 18 | 6 41 7 Regions Visited 2 Branch Regions . Pre-discovered Areas . | . . . Known Exits Taken . | . . . Unknown Exits Taken 2 | 1 1 . Scrap Searched . | . . . Spaces Dug . | . . . Terrain Destroyed 25 | . . 25 Melee . | . . . Projectile . | . . . AOE 25 | . . 25 Terrain Rammed . | . . . Walls Destroyed . | . . . Machines Disabled . | . . . Actions | -11 -10 -9 --------- Run | Yrd Mat Mat Total 424 | 112 265 47 Wait . | . . . Move 373 | 91 248 34 Hop . | . . . Pick Up 15 | 9 4 2 Fast Attach 7 | 7 . . Attach 3 | . . 3 Detach . | . . . Swap 5 | . 2 3 Drop 8 | 1 7 . Fire 13 | 4 4 5 Melee . | . . . Ram . | . . . Kick . | . . . Crush . | . . . Escape Stasis . | . . . Rewire . | . . . Trap . | . . . Miscellaneous . | . . . Route ------- -11/Scrapyard -10/Materials (discovered 2 exits: [*Mat] / [Min]) -9/Materials History --------- Turn | Location | Event 9 | -11/Scrapyard | Discovered new exit (range 15) 119 | -11/Scrapyard | Entered Materials 156 | -10/Materials | Discovered new exit (range 12) 337 | -10/Materials | Build established: Mutant 346 | -10/Materials | Discovered new exit (range 10) 371 | -10/Materials | Entered another Materials area 371 | -9/Materials | Evolved 2 slots: Propulsion x2 426 | -9/Materials | Self-destructed Last Messages --------------- 00399_ U-05 Engineer builds a Wall. 00400_ Acquired Hover Unit. 00401_ U-05 Engineer lays Concrete. 00401_ R-06 Scavenger collects Beam Rifle. 00402_ Critical hit (Burn: +37). 00402_ U-05 Engineer lays Concrete. 00405_ U-05 Engineer builds a Wall. 00406_ U-05 Engineer builds a Door. 00406_ Acquired 46 matter. 00406_ R-06 Scavenger collects Hover Unit. 00407_ Wheel destroyed. 00407_ Destroyed Wheel. 00407_ U-05 Engineer destroyed. 00408_ R-06 Scavenger destroyed. 00412_ Acquired Hover Unit. 00417_ Hover Unit destroyed. 00418_ The unstable cave ceiling collapses. 00420_ Imp. Terrain Scanner destroyed. 00420_ Critical hit (Burn: +37). 00426_ Grenade Launcher destroyed. Map ----- +----------------------------------------------------+ | ????????????????????????????????????????????? | | ????????????????????????????????????????????? | | ????????????????????????????????????????????? | | ????????????????????????????????????????????? | | ????????????????????????????????????????????? | | ????????????????????????????????????????????? | | ????????????????????????????????????????????? | | ????????????????????????????+???????????????? | | ?????????????????????????#?? #????#?????????? | | ???????????????????????????? #??????????????? | | ??????????????????????? ?### ##?????????????? | | ???????????????????????? # #?????????????? | | ????????????????????????? # ????????? | | ????????????????# ??????? ? """ ????????? | | ????????????????# ??????? ??"""?"???????? | | ????????????????##+#####??# #? """?????????? | | ????????????????# ??# #?? ??? ?????? | | ????????????????# "T" ### #??#+#???####### | | ????????????????# ##?# #?? # | | ????????????????# ] ### #?? """? | | ????????????????# * ## ## ] """# | | ????????????????# Y=% Y # """# | | ????????????????# """ ![ + # | | ????????????????# """ #### # """# | | ????????????????# """ #### # """# | | ??????????????? # #@ # #? """? | | ????????????????# # # #? # | | ????????????????###### # % # #??####### | | ?????????????????????#### [ # #???#????? | | ?????????????????????#??# # #???????#? | | ???????????????????????# "" # #????????? | | ???????????????????????## S"" # #????????? | | ????????????????????????# "" # #????????? | | ????????????????????????# # #????????? | | ????????????????????#?############ ##???????? | | ??????????????????? #??#????? | | ??????????????????? #???????? | | ??????????????????? #???????? | | ????????????????????############ ####???????? | | ???????????????????????? ?????# ???????????? | | ????????????????????? ????????###???????????? | | ????????????????????????????????????????????? | | ????????????????????????????????????????????? | | ????????????????????????????????????????????? | | ????????????????????????????????????????????? | | ????????????????????????????????????????????? | | ????????????????????????????????????????????? | | ????????????????????????????????????????????? | | ????????????????????????????????????????????? | | ????????????????????????????????????????????? | +----------------------------------------------------+ Best States ------------- Heat Dissipation 28 Energy Generation 10 Energy Capacity 400 Matter Stores 259 Matter Capacity 300 Sight Range 16 Terrain Scan Range 16 Terrain Scan Density 10 Evasion (%) 44 Recoil Reduction 2 Item Schematics ----------------- None Robot Schematics ------------------ None Fabricated ------------ Nothing Alien Tech Used ----------------- None Achievements -------------- None Challenges ------------ None Game ------ Seed BombAnalysisDetonator Manual? 0 Play Time 00:06:59 Cumulative 34.1 hours Start 2024.06.01 @ 18:31:51 End 2024.06.01 @ 18:37:21 Sessions 1 Manual Loads 0 Difficulty Rogue Special Mode None Game No. 41 Rogue 41 Adventurer 0 Explorer 0 Win Type - Total 0 Types 0/0/0/0/0/0/0/0/0 Lore% 12 Gallery% 33 Achievement% 23 Wizard Run 0 Options --------- Layout 0 ASCII 0 Keyboard 0 Movement Mouse Keybinds 0 Fullscreen 1 Font 24/Smallcaps Map View 76x50 Zoom Use 0% Tactical HUD 1 Map Filters NONE Filters NONE Steam 1 RUN: 37fde010-56cd-420a-be2b-8d0eb02ada2d